Cogmind - Beta 12 @@@ ROGUE MODE // 2023.07.15 @ 07:58:18 Player: javashane Result: Destroyed by as-86612 with Assembled Heavy Rifle Performance ------------- Evolutions (0) 0 Regions Visited (2) 400 Robots Destroyed (16) 80 Value Destroyed (314) 314 Prototype IDs (0) 0 Alien Tech Used (0) 0 Bonus (0) 0 TOTAL SCORE: 794 Bonus ------- None Cogmind --------- Core Integrity 0/250 Matter 238/300 Energy 100/100 System Corruption 0% Temperature Cool (0) Movement Rolling (135) Ox3 Location -10/Mines Parts ------- > --- POWER (1) -------- (None) > --- PROPULSION (2) --- Armored Wheel Armored Wheel > --- UTILITY (2) ------ Huge Storage Unit > --- WEAPON (2) ------- Light Assault Rifle > --- INVENTORY (25) --- Light Ion Engine Light Ion Engine Aluminum Leg Aluminum Leg Aluminum Leg Aluminum Leg Aluminum Leg Aluminum Leg Medium Armor Plating Shield Generator Tractor Beam Peak State ------------ > --- POWER ------------ Light Nuclear Core > --- PROPULSION ------- Armored Wheel Armored Wheel > --- UTILITY ---------- Huge Storage Unit Medium Armor Plating > --- WEAPON ----------- Light Cannon Light Cannon > --- INVENTORY -------- Light Ion Engine Light Ion Engine Aluminum Leg Aluminum Leg Aluminum Leg Aluminum Leg Aluminum Leg Aluminum Leg Medium Armor Plating Shield Generator Tractor Beam Light Assault Rifle [Rating: 13] Favorites ----------- Power Ion Engine Engine Ion Engine Power Core Light Nuclear Core Propulsion Aluminum Leg Leg Aluminum Leg Wheel Armored Wheel Utility Small Storage Unit Device Shield Generator Storage Small Storage Unit Protection Medium Armor Plating Weapon Light Cannon Ballistic Gun Light Assault Rifle Ballistic Cannon Light Cannon Build | -11 -10 -10 ------- Run | Jun Mat Min Slots Evolved . | . . . Power . | . . . Propulsion . | . . . Utility . | . . . Weapon . | . . . Parts Attached 21 | 9 10 2 Power 4 | 2 1 1 Engine 3 | 2 1 . Core 1 | . . 1 Reactor . | . . . Propulsion 4 | 2 2 . Treads . | . . . Leg 2 | 2 . . Wheel 2 | . 2 . Hover . | . . . Flight . | . . . Utility 8 | 3 5 . Device 4 | 2 2 . Storage 2 | 1 1 . Processor . | . . . Hackware . | . . . Protection 2 | . 2 . Artifact . | . . . Weapon 5 | 2 2 1 Energy Gun . | . . . Energy Cannon . | . . . Ballistic Gun 3 | 2 . 1 Ballistic Cannon 2 | . 2 . Launcher . | . . . Special Weapon . | . . . Impact Weapon . | . . . Slashing Weapon . | . . . Piercing Weapon . | . . . Special Melee Weapon . | . . . Unidentified Prototypes . | . . . Parts Lost 5 | . 1 4 Power 2 | . 1 1 Propulsion . | . . . Utility 1 | . . 1 Weapon 2 | . . 2 Highest Loss Streak 4 | . 1 4 To Critical Strikes . | . . . Average Slot Usage (%) 97 | . 98 94 Engine 9 | . 12 3 Core 3 | . . 10 Leg 15 | . 24 . Wheel 12 | . 3 28 Device 4 | . 7 . Storage 14 | . 14 14 Protection 8 | . 6 12 Ballistic Gun 3 | . 3 1 Ballistic Cannon 23 | . 24 22 Naked Turns . | . . . Heaviest Build 98 | 13 96 98 Greatest Support 24 | 20 24 24 Greatest Overweight (x) 4 | 1 3 4 Average Overweight (x) 1 | . 1 3 Largest Inventory Capacity 25 | 8 25 25 Average Capacity 13 | 6 10 25 Most Carried 12 | 5 8 12 Average Carried 7 | 4 7 11 Final Capacity 25 | 8 25 25 Final Carried 11 | 5 8 11 Class Distribution -------------------- 100% | Mutant Dominant Class ---------------- Mutant | -10/Materials Mutant | -10/Mines Resources | -11 -10 -10 ----------- Run | Jun Mat Min Matter Collected 662 | 291 213 158 Remotely 196 | 134 62 . Salvage Created 440 | 105 163 172 Parts 31 | 8 15 8 Haulers Intercepted . | . . . Recyclers Shooed 1 | . . 1 Parts Field Recycled . | . . . Retrieved Matter . | . . . Parts Self-Destructed . | . . . Prevented . | . . . Kills | -11 -10 -10 ------- Run | Jun Mat Min Combat Hostiles Destroyed 13 | . 7 6 Guns 2 | . . 2 Cannons 11 | . 7 4 Classes Destroyed 7 | 2 4 1 Worker 2 | . 2 . Tunneler 2 | 2 . . Recycler 2 | 1 . 1 Watcher 1 | . 1 . Swarmer 3 | . 3 . Grunt 6 | . 4 2 Assembled 4 | . . 4 Best Kill Streak 6 | 2 6 3 Combat Bots Only 5 | . 5 2 Max Kills in Single Turn 1 | 1 1 1 Gunslinging . | . . . Exploded . | . . . Melee . | . . . Uniques/NPCs Destroyed . | . . . Combat | -11 -10 -10 -------- Run | Jun Mat Min Damage Taken 1134 | . 445 689 Core 261 | . 60 201 Absorbed by Shields 147 | . 147 . Core Remaining (%) 100 | 100 . . Volleys Fired 67 | 13 25 29 Largest 2 | 2 2 2 Hottest 70 | 40 70 70 Shots Fired 117 | 26 49 42 Gun 43 | 26 1 16 Cannon 74 | . 48 26 Launcher . | . . . Special . | . . . Kinetic 117 | 26 49 42 Thermal . | . . . Explosive . | . . . Electromagnetic . | . . . Robot Hit Streak 7 | 4 7 7 Robot Miss Streak 4 | 1 4 3 Penetration Max . | . . . Secondary Targets . | . . . Shots Hit Robots 68 | 17 24 27 Core Hits 34 | 6 12 16 Critical Kills . | . . . Critical Parts Destroyed 1 | . . 1 Critical Strikes 2 | . 1 1 Destroy 1 | . . 1 Blast 1 | . 1 . Melee Attacks . | . . . Impact . | . . . Slashing . | . . . Piercing . | . . . Sneak Attacks . | . . . Combat Hostiles . | . . . Follow-up Attacks . | . . . Damage Inflicted 983 | 139 446 398 Guns 224 | 139 . 85 Cannons 751 | . 446 305 Explosions . | . . . Melee . | . . . Ramming 8 | . . 8 Kinetic 975 | 139 446 390 Thermal . | . . . Explosive . | . . . Electromagnetic . | . . . Impact . | . . . Slashing . | . . . Piercing . | . . . Highest Corruption . | . . . Average Corruption . | . . . Corruption Purged . | . . . Corruption Blocked . | . . . Overload Shots . | . . . Overflow Damage 10 | . . 10 Projectiles 10 | . . 10 Explosions . | . . . Melee . | . . . Knockbacks 14 | . 8 6 Impact . | . . . Kinetic 12 | . 7 5 Secondary 2 | . 1 1 Self-Inflicted Damage 4 | . . 4 Shots . | . . . Rammed 1 | . . 1 Targets Rammed 1 | . . 1 Kicked . | . . . Crushed . | . . . Highest Temperature 213 | . 141 213 Average Temperature 64 | . 65 62 Received Heat Transfer 281 | . 163 118 Siege Activations . | . . . Robots Corrupted . | . . . Combat Hostiles . | . . . Parts Fried . | . . . Impact Corruptions . | . . . Robots Melted . | . . . Combat Hostiles . | . . . Parts Melted . | . . . Heat Transferred . | . . . Parts Sabotaged . | . . . Parts Stolen . | . . . Parts Stripped . | . . . Power Chain Reactions . | . . . Missiles Intercepted . | . . . Alert | -11 -10 -10 ------- Run | Jun Mat Min Peak Influence 233 | 15 233 145 Initial 90 | . 9 90 Average 104 | 7 133 133 Maximum Alert Level 1 | . 1 . Low Security (%) 75 | 100 50 100 Level 1 24 | . 49 . Level 2 . | . . . Level 3 . | . . . Level 4 . | . . . Level 5 . | . . . High Security . | . . . Max Security . | . . . Squads Dispatched 1 | . 1 . Investigation . | . . . Extermination . | . . . Reinforcement 1 | . 1 . Assault . | . . . Garrison . | . . . Intercept . | . . . Searches Triggered . | . . . Construction Impeded . | . . . Haulers Reinforced . | . . . Active Scanning Responses . | . . . Cargo Convoy Interrupts . | . . . Stealth | -11 -10 -10 --------- Run | Jun Mat Min Distress Signals 1 | . 1 . Communications Jammed . | . . . Distress Signals . | . . . Times Spotted 23 | . 11 12 Peak Tracking Total 8 | . 8 7 Tactical Retreats . | . . . Traps | -11 -10 -10 ------- Run | Jun Mat Min Traps Triggered . | . . . Indirectly . | . . . Trap Hack Attempts . | . . . Triggered . | . . . Disarmed . | . . . Reprogrammed . | . . . Reused . | . . . Traps Extracted . | . . . Installed . | . . . Triggered . | . . . Machines | -11 -10 -10 ---------- Run | Jun Mat Min Machines Disabled 1 | . 1 . Max in Single Turn 1 | . 1 . Machines Repaired . | . . . Machines Sabotaged . | . . . Overloaded Fab Kills . | . . . Hacking | -11 -10 -10 --------- Run | Jun Mat Min Machines Accessed . | . . . Terminals . | . . . Fabricators . | . . . Repair Stations . | . . . Recycling Units . | . . . Scanalyzers . | . . . Garrison Access . | . . . Total Hacks . | . . . Successful . | . . . Failed . | . . . Catastrophic . | . . . Database Lockouts . | . . . Manual . | . . . Terminals . | . . . Fabricators . | . . . Repair Stations . | . . . Recycling Units . | . . . Scanalyzers . | . . . Garrison Access . | . . . Terminal Hacks . | . . . Fabricator Hacks . | . . . Repair Station Hacks . | . . . Recycling Unit Hacks . | . . . Scanalyzer . | . . . Garrison Access Hacks . | . . . Unauthorized Hacks . | . . . Terminals . | . . . Fabricators . | . . . Repair Stations . | . . . Recycling Units . | . . . Scanalyzers . | . . . Garrison Access . | . . . Data Cores Recovered . | . . . Used . | . . . Hacking Detections . | . . . Full Trace Events . | . . . Feedback Events . | . . . Feedback Blocked . | . . . Robot Schematics Acquired . | . . . Robots Built . | . . . Authchips . | . . . Time . | . . . Total Robot Build Rating . | . . . Part Schematics Acquired . | . . . Parts Built . | . . . Authchips . | . . . Time . | . . . Total Part Build Rating . | . . . Parts Repaired . | . . . Time . | . . . Parts Recycled . | . . . Recycled Matter . | . . . Retrieved Matter . | . . . Retrieved Components . | . . . Parts Scanalyzed . | . . . Part Schematics Acquired . | . . . Parts Damaged . | . . . Bothacking | -11 -10 -10 ------------ Run | Jun Mat Min Used RIF Installer . | . . . Robots Hacked . | . . . Non-combat . | . . . Combat . | . . . Robot Hacks Applied . | . . . Relay Couplers Released . | . . . Fabnet Peak Effective % . | . . . Robots Rewired . | . . . Allies Hacked . | . . . Hacks Repelled . | . . . Allies | -11 -10 -10 -------- Run | Jun Mat Min Total Allies 1 | . . 1 Largest Group 1 | . . 1 Highest-Rated Group 31 | . . 31 Highest-Rated Ally 31 | . . 31 Total Orders . | . . . Ally Attacks 2 | . . 2 Total Damage 40 | . . 40 Kills . | . . . Allies Corrupted . | . . . Allies Melted 1 | . . 1 Intel | -11 -10 -10 ------- Run | Jun Mat Min Robot Analysis Total . | . . . Derelict Logs Recovered 1 | . . 1 Drone Launches . | . . . Drone Recoveries . | . . . Exploration | -11 -10 -10 ------------- Run | Jun Mat Min Turns Passed 760 | 175 373 212 Spaces Moved 351 | 98 160 93 Core 9 | 9 . . Treads . | . . . Legs 207 | 89 118 . Wheels 135 | . 42 93 Hover . | . . . Flight . | . . . Fastest Speed 50 | 50 120 135 Average Speed 135 | 114 142 146 Slowest Speed 190 | 120 190 150 Overloaded Moves . | . . . Propulsion Burnouts . | . . . Robots Hopped . | . . . Cave-ins Triggered . | . . . Exploration Rate (%) 18 | 6 31 19 Regions Visited 2 Branch Regions 1 Pre-discovered Areas . | . . . Known Exits Taken . | . . . Unknown Exits Taken 2 | 1 1 . Scrap Searched 1 | . . 1 Spaces Dug . | . . . Terrain Destroyed . | . . . Melee . | . . . Projectile . | . . . AOE . | . . . Terrain Rammed . | . . . Walls Destroyed . | . . . Machines Disabled . | . . . Actions | -11 -10 -10 --------- Run | Jun Mat Min Total 521 | 136 256 129 Wait 59 | 12 47 . Move 349 | 97 159 93 Hop . | . . . Pick Up 17 | 5 8 4 Fast Attach 8 | 6 2 . Attach 4 | 1 2 1 Detach . | . . . Swap 9 | 2 6 1 Drop 7 | . 7 . Fire 67 | 13 25 29 Melee . | . . . Ram 1 | . . 1 Kick . | . . . Crush . | . . . Escape Stasis . | . . . Rewire . | . . . Trap . | . . . Miscellaneous . | . . . Route ------- -11/Junkyard -10/Materials -10/Mines History --------- Turn | Location | Event 9 | -11/Junkyard | Discovered new exit (range 15) 176 | -11/Junkyard | Entered Materials 310 | -10/Materials | Build established: Mutant 405 | -10/Materials | Discovered new exit (range 15) 549 | -10/Materials | Entered Mines 665 | -10/Mines | Assembled infested the area 667 | -10/Mines | Received a Mining Laser from a helpful Derelict 671 | -10/Mines | Assisted by a Guerilla fighting off Assembled 679 | -10/Mines | Learned Materials trap positions 729 | -10/Mines | Core integrity fell below 50% 754 | -10/Mines | Core integrity fell below 20% 761 | -10/Mines | Destroyed by as-86612 with Assembled Heavy Rifle Last Messages --------------- Data stored: Materials trap records. 00683_ VA-E9L(g): "Mining lasers are a lot more useful than you might think..." 00696_ D-53 Grenadier unfolds itself. 00706_ D-53 Grenadier destroyed. 00713_ as-33793 knocked back. 00713_ as-98806 destroyed. 00716_ as-59950 destroyed. 00719_ as-67174 knocked back. 00721_ The unstable cave ceiling collapses. 00721_ Carbon-fiber Leg crushed. 00722_ as-67174 knocked back. 00723_ The unstable cave ceiling collapses. 00724_ Lgt. Cannon destroyed. 00732_ Med. Armor Plating destroyed. 00737_ as-33793 destroyed. 00748_ as-67174 destroyed. 00753_ as-25976 suffers critical hit (Destroy). 00753_ Destroyed Asb. Rifle. 00758_ Lgt. Nuclear Core destroyed. Map ----- +----------------------------------------------------+ | ??????????????### #??????? | | ????????????????## ##??????? | | ?????????????????## ##???????? | | ??????????????????## #????????? | | ???????????????????# #????????? | | ?????????????????### #????????? | | ??????????####???# #????????? | | ??????????# #??# ###????????? | | ??????????# #?# #??????????? | | ??????????# ?# #??????????? | | ??????????# ## #??????????? | | ??????????# | #??????????? | | ??????????## ## ###??????????? | | ???????????????# #????????????? | | ???????????????# ###??????????? | | ??????????????## ## ??????????? | | ??????????????? ?????????? | | ?????????????## ?????????? | | ?????????????# %# #####???? | | ?????????????# % #???? | | ??????????????# %# ##a#???? | | ??????????????## ## #???? | | ??????????????# %= #???? | | ???????????????## % ## #???? | | ????????????????# ! ?#a#???? | | ????????????????# % ??#@#???? | | ????????????????# %= ??# #???? | | ???????????????# % ???#a#???? | | ???????????????#" ??? ???? | | ??????????????#"=% ???? ???? | | ?????????????=%[% ???? ???? | | ???????????? =|! ????? ???? | | ???????????? ## ???? ####??? | | ???????????? #?##?????#??????? | | ??????????????????????????????? | | ??????????????????????????????? | | ??????????????????????????????? | | | | | | | | | | | | | | | | | | | | | | | | | | | +----------------------------------------------------+ Best States ------------- Heat Dissipation 25 Energy Generation 14 Energy Capacity 250 Matter Stores 300 Matter Capacity 300 Sight Range 16 Terrain Scan Density 10 Armor Coverage 225 Evasion (%) 55 Item Schematics ----------------- None Robot Schematics ------------------ None Fabricated ------------ Nothing Alien Tech Used ----------------- None Achievements -------------- None Challenges ------------ None Game ------ Seed FireTransportUnit Manual? 0 Play Time 00:17:36 Cumulative 6.3 hours Start 2023.07.14 @ 19:35:48 End 2023.07.15 @ 07:58:18 Sessions 3 Manual Loads 0 Difficulty Rogue Special Mode None Game No. 11 Rogue 10 Adventurer 1 Explorer 0 Win Type - Total 0 Types 0/0/0/0/0/0/0/0/0 Lore% 3 Gallery% 12 Achievement% 13 Wizard Run 0 Options --------- ASCII 0 Keyboard 0 Movement Mouse Keybinds 0 Fullscreen 1 Font 24/Smallcaps Map View 76x50 Tactical HUD 1 Map Filters NONE Filters NONE Steam 1 RUN: 03b3d405-7c29-4f29-9af7-9dc69d51a736